bitfinex/quotes_BTCUSD_20250224
["timestamp","ask_amount","ask_price","bid_price","bid_amount"]
[1740400195592,0.01495337,96010.0,96007.0,0.156238]
[1740400195975,0.01495337,96010.0,96006.0,0.20832]
[1740400196179,0.01495337,96010.0,96007.0,0.156238]
[1740400196380,0.01395337,96010.0,96007.0,0.156238]
[1740400196716,0.01495337,96010.0,96007.0,0.156238]
[1740400197123,0.01495337,96010.0,96002.0,0.31267229]
[1740400197421,0.01495337,96010.0,96006.0,0.156239]
[1740400197984,0.01395337,96010.0,96006.0,0.156239]
[1740400198390,0.01495337,96010.0,96007.0,0.156238]
[1740400198592,0.01395337,96010.0,96007.0,0.156238]
[1740400198796,0.01495337,96010.0,96007.0,0.156238]
[1740400199096,0.01395337,96010.0,96007.0,0.156238]
[1740400199439,0.01495337,96010.0,96008.0,0.156236]
[1740400199639,0.01495337,96010.0,96009.0,0.25888069]
[1740400201180,0.01395337,96010.0,96009.0,0.25888069]
[1740400207310,0.01395337,96010.0,96009.0,0.26057989]
[1740400213816,0.01395337,96010.0,96009.0,0.26257989]
[1740400214399,0.01395337,96010.0,96009.0,0.31337989]
[1740400214595,0.01395337,96010.0,96009.0,0.38977989]
[1740400217519,0.0008498,96010.0,96009.0,0.38977989]
[1740400243830,0.0008498,96010.0,96009.0,0.38777989]
[1740400244030,0.0008498,96010.0,96009.0,0.38977989]
[1740400244659,0.0008498,96010.0,96009.0,0.38777989]
[1740400244871,0.0008498,96010.0,96009.0,0.38577989]
[1740400245030,0.0008498,96010.0,96009.0,0.39477989]
[1740400245630,0.0008498,96010.0,96009.0,0.39277989]
[1740400245834,0.0008498,96010.0,96009.0,0.39777989]
[1740400247549,0.0008498,96010.0,96009.0,0.39077989]
[1740400247949,0.0008498,96010.0,96009.0,0.39777989]
[1740400248363,0.0008498,96010.0,96009.0,0.39277989]
[1740400248494,0.0008498,96010.0,96009.0,0.39977989]
[1740400249544,0.0028498,96010.0,96009.0,0.39977989]
[1740400252695,0.14285278,96030.0,96023.0,0.156211]
[1740400252910,0.14285278,96030.0,96024.0,0.10264569]
[1740400253107,0.14285278,96034.0,96024.0,0.10264569]
[1740400253505,0.15850089,96034.0,96024.0,0.25885469]
[1740400253762,0.15850089,96034.0,96025.0,0.156209]
[1740400253763,0.01564811,96034.0,96025.0,0.156209]
[1740400253961,0.156191,96036.0,96026.0,0.10264569]
[1740400254573,0.14285278,96040.0,96027.0,0.0771]
[1740400254804,0.14298204,96040.0,96031.0,0.156198]
[1740400254960,0.14298204,96040.0,96032.0,0.10264569]
[1740400255342,0.15888604,96040.0,96032.0,0.10264569]
[1740400255468,0.01603326,96040.0,96032.0,0.10264569]
[1740400258420,0.01603326,96040.0,96032.0,0.25884169]
[1740400258642,0.01603326,96040.0,96032.0,0.10264569]
[1740400258827,0.17221826,96040.0,96032.0,0.10264569]
[1740400259049,0.01603326,96040.0,96032.0,0.10264569]
[1740400259489,0.01603326,96040.0,96032.0,0.25884269]
[1740400259625,0.01603326,96040.0,96032.0,0.10264569]
[1740400261295,0.01603326,96040.0,96032.0,0.25884269]
[1740400261581,0.01603326,96040.0,96032.0,0.10264569]
[1740400262529,0.17221826,96040.0,96032.0,0.10264569]
[1740400262735,0.156186,96039.0,96032.0,0.10264569]
[1740400262936,0.01603326,96040.0,96032.0,0.10264569]
[1740400263145,0.01603326,96040.0,96032.0,0.25884169]
[1740400263480,0.17221726,96040.0,96032.0,0.10264569]
[1740400263774,0.01603326,96040.0,96032.0,0.10264569]
[1740400264310,0.01603326,96040.0,96032.0,0.25884269]
[1740400264514,0.01603326,96040.0,96032.0,0.10264569]
[1740400264922,0.17221826,96040.0,96032.0,0.10434449]
[1740400265223,0.17306766,96040.0,96032.0,0.10434449]
[1740400265797,0.01688266,96040.0,96032.0,0.10434449]
[1740400265954,0.17306666,96040.0,96032.0,0.10434449]
[1740400268078,0.01688266,96040.0,96032.0,0.10434449]
[1740400270085,0.01688266,96040.0,96032.0,0.26054149]
[1740400270297,0.01688266,96040.0,96033.0,0.20826]
[1740400270504,0.01688266,96040.0,96034.0,0.156194]
[1740400271020,0.01688266,96040.0,96033.0,0.33794069]
[1740400271621,0.01688266,96040.0,96033.0,0.18174569]
[1740400271828,0.01688266,96040.0,96033.0,0.33794069]
[1740400272982,0.01688266,96040.0,96034.0,0.156193]
[1740400273815,0.01688266,96040.0,96034.0,0.10264569]
[1740400273945,0.01688266,96040.0,96035.0,0.156192]
[1740400274146,0.01688266,96040.0,96034.0,0.10264569]
[1740400274340,0.01688266,96040.0,96035.0,0.156192]
[1740400274746,0.01688266,96040.0,96034.0,0.25883969]
[1740400275261,0.01688266,96040.0,96034.0,0.10264569]
[1740400275461,0.01688266,96040.0,96034.0,0.31090369]
[1740400275720,0.01688266,96040.0,96035.0,0.156192]
[1740400276099,0.01688266,96040.0,96037.0,0.156188]
[1740400276308,0.01688266,96040.0,96036.0,0.15619]
[1740400280561,0.01688266,96040.0,96034.0,0.31090269]
[1740400282232,0.01688266,96040.0,96034.0,0.10264569]
[1740400283299,0.17306666,96040.0,96034.0,0.10264569]
[1740400283478,0.01688266,96040.0,96034.0,0.10264569]
[1740400285053,0.17306766,96040.0,96034.0,0.10264569]
[1740400285286,0.01688266,96040.0,96034.0,0.10264569]
[1740400287288,0.17306666,96040.0,96034.0,0.10264569]
[1740400287692,0.01688266,96040.0,96034.0,0.10264569]
[1740400288284,0.17306766,96040.0,96034.0,0.10264569]
[1740400288480,0.17306766,96040.0,96034.0,0.10434449]
[1740400288903,0.01688266,96040.0,96034.0,0.10434449]
[1740400289299,0.17306666,96040.0,96034.0,0.10434449]
[1740400289503,0.01688266,96040.0,96034.0,0.10434449]
[1740400289758,0.17306766,96040.0,96034.0,0.10434449]
[1740400289943,0.01688266,96040.0,96034.0,0.10434449]
[1740400295002,0.01688266,96040.0,96034.0,0.26053849]
[1740400295825,0.01688266,96040.0,96034.0,0.10434449]
[1740400296764,0.01688266,96040.0,96034.0,0.26053849]
[1740400296969,0.01688266,96040.0,96034.0,0.10434449]
[1740400304159,0.416497,96039.0,96034.0,0.0016988]
[1740400304357,0.156193,96035.0,96034.0,0.0016988]
[1740400305574,0.156193,96035.0,96034.0,0.0026988]
[1740400307317,0.156193,96035.0,96034.0,0.0036988]
[1740400307522,0.306193,96035.0,96034.0,0.0036988]
[1740400309408,0.306193,96035.0,96034.0,0.0026988]
[1740400309823,0.41366727,96035.0,96034.0,0.0026988]
[1740400310032,0.53085381,96035.0,96034.0,0.0026988]
[1740400310272,3.27882981,96035.0,96034.0,0.0026988]
[1740400310475,3.30810886,96035.0,96034.0,0.0026988]
[1740400310680,3.30810886,96035.0,96034.0,0.0016988]
[1740400311377,3.30910886,96035.0,96034.0,0.0016988]
[1740400311985,3.31010886,96035.0,96034.0,0.0016988]
[1740400312191,3.31095826,96035.0,96034.0,0.0016988]
[1740400313458,3.63685826,96035.0,96034.0,0.0016988]
[1740400318775,0.88888226,96035.0,96034.0,0.0016988]
[1740400318970,4.31853926,96035.0,96034.0,0.0016988]
[1740400319171,4.29425899,96035.0,96034.0,0.0016988]
[1740400319821,3.81722199,96035.0,96034.0,0.0016988]
[1740400320479,3.79491099,96035.0,96034.0,0.0016988]
[1740400320686,3.75211099,96035.0,96034.0,0.0016988]
[1740400321770,3.75211099,96035.0,96034.0,8e-07]
[1740400321910,0.156233,96010.0,96005.0,0.0762]
[1740400322329,0.306233,96010.0,95997.0,0.0792]
[1740400323744,0.306233,96010.0,96009.0,0.0056992]
[1740400324349,0.306233,96010.0,96009.0,0.0016992]
[1740400324549,0.312233,96010.0,96009.0,0.0016992]
[1740400325192,0.35444121,96010.0,96009.0,0.0016992]
[1740400328955,0.32677385,96010.0,96009.0,0.0016992]
[1740400329180,1.53031254,96010.0,96009.0,0.0016992]
[1740400329408,0.156245,96003.0,95993.0,0.0488]
[1740400329615,0.156245,96003.0,95960.0,0.2101176]
[1740400329616,3.00687054,96003.0,95983.0,0.048]
[1740400329839,3.16449954,96003.0,95984.0,0.0783]
[1740400330065,3.26714523,96003.0,95984.0,0.0783]
[1740400330284,3.26714523,96003.0,96002.0,6e-07]
[1740400330285,3.44642428,96003.0,96002.0,6e-07]
[1740400330486,0.88125628,96003.0,96002.0,6e-07]
[1740400330660,0.88525628,96003.0,96002.0,6e-07]
[1740400331048,0.88225628,96003.0,96002.0,6e-07]
[1740400331303,0.88425628,96003.0,96002.0,6e-07]
[1740400331505,0.88725628,96003.0,96002.0,6e-07]
[1740400331856,0.89125628,96003.0,96002.0,6e-07]
[1740400336275,0.01454085,96001.0,95983.0,0.048]
[1740400336459,0.306276,95984.0,95983.0,0.04804305]
[1740400338019,0.32472774,95984.0,95983.0,0.04804305]
[1740400339783,0.32472774,95984.0,95983.0,0.05104305]
[1740400348084,0.32472774,95984.0,95983.0,0.05274205]
[1740400360846,0.01845174,95984.0,95983.0,0.05274205]
[1740400361058,0.17472774,95984.0,95983.0,0.05274205]
[1740400361265,0.156276,95984.0,95983.0,0.05274205]
[1740400362287,0.17453662,95984.0,95983.0,0.05274205]
[1740400365549,0.17453662,95984.0,95983.0,0.13334205]
[1740400366566,0.01826062,95984.0,95983.0,0.13334205]
[1740400366992,0.156263,95992.0,95984.0,0.0801]
[1740400367118,0.15084462,95993.0,95984.0,0.0801]
[1740400367329,0.3259,96001.0,95986.0,0.0801]
[1740400367330,0.208343,95996.0,95986.0,0.0801]
[1740400367575,0.208344,95995.0,95988.0,0.0801]
[1740400367778,0.156263,95992.0,95988.0,0.0801]
[1740400368129,0.156262,95993.0,95988.0,0.0801]
[1740400368330,0.01800394,95996.0,95988.0,0.0801]
[1740400368331,0.156259,95995.0,95988.0,0.0801]
[1740400368606,0.15626,95994.0,95988.0,0.0801]
[1740400368812,0.15,95995.0,95988.0,0.0801]
[1740400369050,0.208346,95994.0,95988.0,0.0801]
[1740400369443,0.156263,95992.0,95988.0,0.0801]
[1740400369796,0.15,95994.0,95988.0,0.0801]
[1740400370594,0.208349,95993.0,95988.0,0.0801]
[1740400370796,0.156267,95989.0,95988.0,0.0801]
[1740400372208,0.156267,95989.0,95988.0,0.0811]
[1740400375319,0.15,95999.0,95988.0,0.0811]
[1740400375725,0.156267,95990.0,95988.0,0.0811]
[1740400375940,0.15,95994.0,95988.0,0.0811]
[1740400376153,0.156267,95989.0,95988.0,0.0811]
[1740400377053,0.156267,95989.0,95988.0,0.0801]
[1740400377385,0.306267,95989.0,95988.0,0.0801]
[1740400378226,0.306267,95989.0,95988.0,0.0811]
[1740400380717,0.15,95989.0,95988.0,0.0811]
[1740400380932,0.03542808,95996.0,95995.0,0.156258]
[1740400380933,0.01849551,95996.0,95995.0,0.156258]
[1740400381155,0.01849551,95996.0,95995.0,0.30400369]
[1740400381366,0.156229,96013.0,96001.0,0.283089]
[1740400381612,0.15,96015.0,96001.0,0.283089]
[1740400381806,0.156228,96014.0,96001.0,0.283089]
[1740400382037,0.15623,96012.0,96001.0,0.283089]
[1740400382213,0.208301,96015.0,96001.0,0.283089]
[1740400382214,0.01862384,96002.0,96001.0,0.1279]
[1740400382499,0.0008495,96002.0,96001.0,0.1279]
[1740400383097,0.0008495,96002.0,96001.0,0.284148]
[1740400383306,0.0008495,96002.0,96001.0,0.38679369]
[1740400384127,0.0008495,96002.0,96001.0,0.38879369]
[1740400385231,0.0008495,96002.0,96001.0,0.38679369]
[1740400386091,0.0008495,96002.0,96001.0,0.38979369]
[1740400386406,0.0008495,96002.0,96001.0,0.39279369]
[1740400388112,0.0008495,96002.0,96001.0,0.38979369]
[1740400388375,0.0078967,96036.0,96022.0,0.1275]
[1740400388713,0.14285278,96032.0,96023.0,0.156212]
[1740400388939,0.01740104,96035.0,96023.0,0.081]
[1740400389142,0.01740104,96035.0,96024.0,0.15621]
[1740400389390,0.15,96028.0,96023.0,0.08]
[1740400390603,0.307204,96028.0,96023.0,0.08]
[1740400391154,0.151,96028.0,96023.0,0.08]
[1740400391763,0.001,96028.0,96023.0,0.08]
[1740400397791,0.0018496,96028.0,96023.0,0.08]
[1740400406558,0.1518496,96028.0,96023.0,0.08]
[1740400406980,0.3080536,96028.0,96023.0,0.08]
[1740400407970,0.15,96026.0,96023.0,0.08]
[1740400409092,0.1570546,96028.0,96023.0,0.08]
[1740400409491,0.0008496,96028.0,96023.0,0.08]
[1740400409714,0.0008496,96028.0,96023.0,0.0816988]
[1740400410647,0.0008496,96028.0,96023.0,0.2379108]
[1740400410873,0.0008496,96028.0,96025.0,0.0776]
[1740400411079,0.0008496,96028.0,96027.0,0.279506]
[1740400411281,0.0008496,96028.0,96027.0,0.38215169]
[1740400412209,0.0018496,96028.0,96027.0,0.38815169]
[1740400414018,0.0018496,96028.0,96027.0,0.39415169]
[1740400417258,0.0018496,96028.0,96027.0,0.23794569]
[1740400417682,0.1580536,96028.0,96027.0,0.1353]
[1740400417893,0.0018496,96028.0,96027.0,0.1353]
[1740400418724,0.1580536,96028.0,96027.0,0.1353]
[1740400419061,0.0018496,96028.0,96027.0,0.1353]
[1740400419481,0.1580536,96028.0,96027.0,0.1353]
[1740400419657,0.1580536,96028.0,96027.0,0.012]
[1740400419658,0.3080536,96028.0,96027.0,0.012]
[1740400421327,0.3070536,96028.0,96027.0,0.006]
[1740400421551,0.156208,96026.0,96023.0,0.0016988]
[1740400422189,0.208275,96027.0,96023.0,0.0016988]
[1740400422601,0.15621,96025.0,96023.0,0.0016988]
[1740400422752,0.15621,96025.0,96023.0,0.0056988]
[1740400422955,0.208278,96026.0,96023.0,0.0016988]
[1740400423155,0.15621,96025.0,96023.0,0.0016988]
[1740400423377,0.15621,96025.0,96023.0,0.0056988]
[1740400423575,0.15621,96024.0,96023.0,0.0056988]
[1740400424627,0.15621,96024.0,96023.0,0.0016988]
[1740400425039,0.15621,96024.0,96023.0,0.0056988]
[1740400425269,0.15621,96024.0,96023.0,0.0016988]
[1740400425463,0.156209,96025.0,96023.0,0.0046988]
[1740400425711,0.156209,96025.0,96023.0,0.0096988]
[1740400425947,0.156209,96025.0,96023.0,0.0066988]
[1740400426413,0.15621,96024.0,96023.0,0.0106988]
[1740400426633,0.1508496,96028.0,96023.0,0.0056988]
[1740400426872,0.156209,96025.0,96023.0,0.0016988]
[1740400427128,0.156209,96025.0,96023.0,0.0056988]
[1740400427346,0.15621,96024.0,96023.0,0.0056988]
[1740400427752,0.15621,96024.0,96023.0,0.0096988]
[1740400428614,0.15621,96024.0,96023.0,0.0056988]
[1740400428817,0.15621,96024.0,96023.0,0.0086988]
[1740400429020,0.15621,96024.0,96023.0,0.0046988]
[1740400429221,0.15621,96024.0,96023.0,0.0096988]
[1740400429354,0.15621,96024.0,96023.0,0.0066988]
[1740400429560,0.208277,96026.0,96023.0,0.0106988]
[1740400429561,0.156209,96025.0,96023.0,0.0106988]
[1740400430841,0.156209,96025.0,96023.0,0.0056988]
[1740400431036,0.15621,96024.0,96023.0,0.0096988]
[1740400431746,0.15621,96024.0,96023.0,0.0056988]
[1740400431948,0.15621,96024.0,96023.0,0.0096988]
[1740400432325,0.208277,96026.0,96023.0,0.0016988]
[1740400432530,0.15621,96024.0,96023.0,0.0056988]
[1740400432741,0.15621,96024.0,96023.0,0.0106988]
[1740400433330,0.15621,96024.0,96023.0,0.0066988]
[1740400434074,0.1570594,96024.0,96023.0,0.0066988]
[1740400434640,0.1570594,96024.0,96023.0,0.0106988]
[1740400435445,0.1570594,96024.0,96023.0,0.0066988]
[1740400435654,0.1570594,96024.0,96023.0,0.0106988]
[1740400436813,0.3070594,96024.0,96023.0,0.0106988]
[1740400437642,0.3070594,96024.0,96023.0,0.0066988]
[1740400438159,0.3070594,96024.0,96023.0,0.0046988]
[1740400438370,0.3070594,96024.0,96023.0,0.0076988]
[1740400438570,0.3070594,96024.0,96023.0,0.0016988]
[1740400439003,0.3070594,96024.0,96023.0,0.0066988]
[1740400456210,0.3070594,96024.0,96023.0,0.0837988]
[1740400459261,0.3070594,96024.0,96023.0,0.0066988]
[1740400465316,0.31484483,96024.0,96023.0,0.0066988]
[1740400465552,0.15863483,96024.0,96023.0,0.0066988]
[1740400465789,0.31484483,96024.0,96023.0,0.0831988]
[1740400469191,0.15863483,96024.0,96023.0,0.0831988]
[1740400469399,0.31484483,96024.0,96023.0,0.0831988]
[1740400470527,0.3070594,96024.0,96023.0,0.0831988]
[1740400470907,0.0008494,96024.0,96023.0,0.2883108]
[1740400471307,0.0008494,96024.0,96023.0,0.39095649]
[1740400478119,0.14866858,96037.0,96023.0,0.15824449]
[1740400478268,0.15,96036.0,96032.0,0.156196]
[1740400478475,0.15,96036.0,96033.0,0.0821]
[1740400479237,0.306192,96036.0,96033.0,0.0821]
[1740400479361,0.30619,96037.0,96033.0,0.0821]
[1740400479562,0.32119802,96037.0,96033.0,0.0821]
[1740400480020,0.001,96036.0,96033.0,0.0821]
[1740400480360,0.32119802,96037.0,96033.0,0.0821]
[1740400480659,0.32319802,96037.0,96033.0,0.0821]
[1740400481244,0.001,96036.0,96033.0,0.0821]
[1740400481469,0.32119802,96037.0,96033.0,0.238295]
[1740400481924,0.17119702,96037.0,96033.0,0.0831]
[1740400482696,0.156191,96036.0,96033.0,0.0831]
[1740400482898,0.3663248,96039.0,96033.0,0.0831]
[1740400483093,0.15619,96037.0,96033.0,0.0831]
[1740400483945,0.15,96037.0,96033.0,0.239295]
[1740400484147,0.15,96037.0,96033.0,0.238295]
[1740400484407,0.15,96037.0,96033.0,0.239295]
[1740400484821,0.16531601,96037.0,96033.0,0.238295]
[1740400485007,0.01531601,96037.0,96033.0,0.239295]
[1740400485211,0.17150501,96037.0,96033.0,0.239295]
[1740400485417,0.156189,96037.0,96033.0,0.239295]
[1740400485670,0.156189,96037.0,96033.0,0.0831]
[1740400485923,0.306188,96038.0,96033.0,0.239296]
[1740400486409,0.306188,96038.0,96034.0,0.156194]
[1740400486647,0.3142608,96039.0,96034.0,0.156194]
[1740400486857,0.01521335,96038.0,96034.0,0.156194]
[1740400487071,0.3142608,96039.0,96034.0,0.156194]
[1740400487227,0.156188,96038.0,96034.0,0.156194]
[1740400487439,0.156188,96038.0,96033.0,0.238295]
[1740400487659,0.156188,96038.0,96033.0,0.0821]
[1740400488030,0.15,96036.0,96033.0,0.0821]
[1740400488235,0.15,96034.0,96033.0,0.0821]
[1740400489089,0.15,96034.0,96033.0,0.0831]
[1740400489491,0.30619,96037.0,96033.0,0.0831]
[1740400489905,0.156194,96034.0,96033.0,0.0831]
[1740400490103,0.156194,96034.0,96033.0,0.0841]
[1740400490519,0.306194,96034.0,96033.0,0.0831]
[1740400490737,0.306194,96034.0,96033.0,0.0851]
[1740400491289,0.306194,96034.0,96033.0,0.0841]
[1740400491485,0.208255,96036.0,96033.0,0.0841]
[1740400491692,0.156193,96035.0,96033.0,0.0841]
[1740400492100,0.156193,96035.0,96033.0,0.0857984]
[1740400492462,0.156193,96035.0,96033.0,0.0867984]
[1740400492859,0.156193,96035.0,96033.0,0.0857984]
[1740400493091,0.156193,96035.0,96033.0,0.0867984]
[1740400493299,0.0008492,96037.0,96033.0,0.0867984]
[1740400493498,0.156194,96034.0,96033.0,0.0847984]
[1740400493911,0.156194,96034.0,96033.0,0.0857984]
[1740400494325,0.156194,96034.0,96033.0,0.0837984]
[1740400494530,0.0008492,96037.0,96033.0,0.0837984]
[1740400494531,0.0008492,96037.0,96033.0,0.0847984]
[1740400494951,0.156194,96034.0,96033.0,0.0837984]
[1740400495158,0.156194,96034.0,96033.0,0.0036984]
[1740400495363,0.156194,96034.0,96033.0,0.0046984]
[1740400496745,0.156194,96034.0,96033.0,0.0056984]
[1740400496909,0.156194,96034.0,96033.0,0.0026984]
[1740400497305,0.156194,96034.0,96033.0,0.0036984]
[1740400497512,0.156194,96034.0,96033.0,0.0016984]
[1740400497915,0.156194,96034.0,96033.0,0.0026984]
[1740400506977,0.306194,96034.0,96033.0,0.0026984]
[1740400507178,0.306194,96034.0,96023.0,0.0505988]
[1740400507179,0.30621,96024.0,96023.0,0.0016988]
[1740400508275,0.27001,96024.0,96023.0,0.0056988]
[1740400508478,0.27001,96024.0,96023.0,0.0086988]
[1740400508900,0.27001,96024.0,96023.0,0.0046988]
[1740400509097,0.28455085,96024.0,96023.0,0.0046988]
[1740400510284,0.28455085,96024.0,96023.0,0.0016988]
[1740400510613,2.82877185,96024.0,96023.0,0.0016988]
[1740400510808,2.82877185,96024.0,96023.0,0.002]
[1740400510809,2.96761754,96024.0,96023.0,0.002]
[1740400511034,2.89047354,96024.0,96023.0,0.002]
[1740400511254,0.156233,96010.0,96009.0,0.0819]
[1740400512321,0.156233,96010.0,96009.0,0.0859]
[1740400512692,1.032638,96010.0,96009.0,0.004]
[1740400512897,2.283166,96010.0,96009.0,0.004]
[1740400513254,2.393296,96010.0,96009.0,0.004]
[1740400513592,2.393296,96010.0,96009.0,0.00130221]
[1740400513593,2.41559855,96010.0,96009.0,0.00130221]
[1740400513800,0.306246,96002.0,95995.0,0.0786]
[1740400514926,0.306246,96002.0,96001.0,0.0859992]
[1740400515895,0.15,96002.0,96001.0,0.0829992]
[1740400516102,0.208267,96031.0,96001.0,0.0829992]
[1740400516103,0.14370218,96040.0,96007.0,0.156238]
[1740400516313,0.14285278,96030.0,96004.0,0.0825]
[1740400516518,0.14285278,96030.0,96007.0,0.0825]
[1740400516519,0.482114,96023.0,96007.0,0.0825]
[1740400516739,0.3259,96023.0,96016.0,0.0825]
[1740400516945,0.156222,96017.0,96016.0,0.0825]
[1740400517156,0.3259,96023.0,96016.0,0.0825]
[1740400517157,0.208293,96019.0,96016.0,0.0825]
[1740400517355,0.156219,96019.0,96016.0,0.0825]
[1740400517532,0.15,96022.0,96016.0,0.0825]
[1740400517533,0.156221,96018.0,96016.0,0.0825]
[1740400517738,0.156222,96017.0,96016.0,0.0825]
[1740400519167,0.157222,96017.0,96016.0,0.0825]
[1740400521204,0.001,96017.0,96016.0,0.0825]
[1740400526702,0.001,96017.0,96016.0,0.238723]
[1740400526912,0.001,96017.0,96016.0,0.38886869]
[1740400527345,0.001,96017.0,96016.0,0.23264569]
[1740400528946,0.001,96017.0,96016.0,0.38886869]
[1740400529155,0.001,96017.0,96016.0,0.23264569]
[1740400529721,0.0018499,96017.0,96016.0,0.23264569]
[1740400530699,0.0018499,96017.0,96016.0,0.38886869]
[1740400536077,0.0008499,96017.0,96016.0,0.38886869]
[1740400536530,0.0008499,96017.0,96016.0,0.39186869]
[1740400537546,0.0008499,96017.0,96016.0,0.39486869]
[1740400539485,0.0008499,96017.0,96016.0,0.23864569]
[1740400539684,0.0008499,96017.0,96016.0,0.39486869]
[1740400539918,0.0008499,96017.0,96016.0,0.23864569]
[1740400540574,0.0008499,96017.0,96016.0,0.39486869]
[1740400540977,0.00410985,96017.0,96016.0,0.39486869]
[1740400542582,0.0008499,96017.0,96016.0,0.39486869]
[1740400549894,0.0008499,96017.0,96016.0,0.23864569]
[1740400555578,0.0008499,96017.0,96016.0,0.39486869]
[1740400557112,0.00410982,96017.0,96016.0,0.39486869]
[1740400559458,0.0008499,96017.0,96016.0,0.39486869]
[1740400565447,0.0008499,96017.0,96016.0,0.23864569]
[1740400565889,0.0008499,96017.0,96016.0,0.39486869]
[1740400566037,0.0008499,96017.0,96016.0,0.23864569]
[1740400567669,0.0008499,96017.0,96016.0,0.39486869]
[1740400569543,0.0008499,96017.0,96016.0,0.71626869]
[1740400569744,0.0008494,96040.0,96033.0,0.156196]
[1740400569960,0.0008494,96040.0,96033.0,0.38899932]
[1740400570156,0.0008494,96040.0,96033.0,0.38754169]
[1740400570727,0.0008494,96040.0,96033.0,0.38654169]
[1740400571311,0.0008494,96040.0,96033.0,0.38854169]
[1740400571521,0.0008494,96040.0,96033.0,0.38754169]
[1740400571731,0.0008494,96040.0,96033.0,0.38954169]
[1740400572596,0.00089278,96034.0,96033.0,0.38854169]
[1740400573013,0.00089278,96034.0,96033.0,0.39054169]
[1740400573388,0.00089278,96034.0,96033.0,0.38654169]
[1740400573594,0.00089278,96034.0,96033.0,0.39354169]
[1740400574402,0.00089278,96034.0,96033.0,0.40054169]
[1740400574542,0.00189278,96034.0,96033.0,0.40054169]
[1740400574742,0.00189278,96034.0,96033.0,0.72194169]
[1740400578048,0.00189278,96034.0,96033.0,0.74194169]
[1740400578248,0.00189278,96034.0,96033.0,0.75648254]
[1740400579231,0.0008494,96040.0,96036.0,0.283091]
[1740400579432,0.0008494,96040.0,96036.0,1.25313669]
[1740400579835,0.0008494,96040.0,96036.0,1.27313669]
[1740400580533,0.0008494,96040.0,96036.0,1.28013669]
[1740400581571,0.0008494,96040.0,96036.0,1.28713669]
[1740400583750,0.15,96076.0,96036.0,1.00404569]
[1740400583972,0.15043108,96076.0,96064.0,0.15489302]
[1740400584244,0.30655708,96076.0,96065.0,0.10264569]
[1740400584951,0.32389184,96076.0,96065.0,0.10264569]
[1740400585520,0.01776584,96076.0,96065.0,0.25878969]
[1740400585922,0.01776584,96076.0,96065.0,0.10264569]
[1740400586038,0.17389184,96076.0,96065.0,0.10264569]
[1740400586242,0.17389184,96076.0,96065.0,0.25878869]
[1740400587616,0.01776584,96076.0,96066.0,0.156141]
[1740400587794,0.01776584,96076.0,96063.0,0.208195]
[1740400587795,0.01776584,96076.0,96067.0,0.10264569]
[1740400588579,0.01776584,96076.0,96067.0,0.25878569]
[1740400589002,0.01776584,96076.0,96067.0,0.10264569]
[1740400589406,0.01776584,96076.0,96067.0,0.25878569]
[1740400589603,0.01776584,96076.0,96067.0,0.10264569]
[1740400590021,0.01776584,96076.0,96067.0,0.25878469]
[1740400590416,0.01776584,96076.0,96067.0,0.10264569]
[1740400590617,0.01776584,96076.0,96067.0,0.25878569]
[1740400590813,0.01776584,96076.0,96067.0,0.10264569]
[1740400591225,0.01776584,96076.0,96068.0,0.208185]
[1740400591418,0.01776584,96076.0,96069.0,0.10264569]
[1740400591821,0.01776584,96076.0,96069.0,0.31082769]
[1740400592020,0.01776584,96076.0,96069.0,0.10264569]
[1740400592822,0.01776584,96076.0,96069.0,0.25878269]
[1740400593034,0.01776584,96076.0,96069.0,0.10264569]
[1740400593233,0.01776584,96076.0,96069.0,0.10364569]
[1740400593434,0.01776584,96076.0,96070.0,0.156135]
[1740400593687,0.01776584,96076.0,96069.0,0.10364569]
[1740400593817,0.01776584,96076.0,96069.0,0.10464569]
[1740400594381,0.01776584,96076.0,96070.0,0.156135]
[1740400594689,0.01776584,96076.0,96070.0,0.157135]
[1740400595495,0.01776584,96076.0,96071.0,0.156134]
[1740400595898,0.01776584,96076.0,96070.0,0.001]
[1740400596095,0.01776584,96076.0,96072.0,0.156132]
[1740400596301,0.01776584,96076.0,96071.0,0.208178]
[1740400596612,0.01776584,96076.0,96072.0,0.156132]
[1740400597204,0.01776584,96076.0,96071.0,0.002]
[1740400597414,0.01776584,96076.0,96071.0,0.001]
[1740400597729,0.01776584,96076.0,96072.0,0.157132]
[1740400598077,0.01776584,96076.0,96072.0,0.001]
[1740400598887,0.01776584,96076.0,96072.0,0.002]
[1740400599226,0.01861524,96076.0,96072.0,0.001]
[1740400599766,0.01861524,96076.0,96073.0,0.156129]
[1740400600372,0.01861524,96076.0,96072.0,0.158132]
[1740400600578,0.01861524,96076.0,96073.0,0.156131]
[1740400600775,0.01861524,96076.0,96072.0,0.157131]
[1740400600977,0.01861524,96076.0,96073.0,0.15613]
[1740400601098,0.01861524,96076.0,96073.0,0.15713]
[1740400601305,0.01861524,96076.0,96073.0,0.001]
[1740400602378,0.01861524,96076.0,96071.0,0.156133]
[1740400602736,0.01861524,96076.0,96073.0,0.001]
[1740400606487,0.01861524,96076.0,96073.0,0.002]
[1740400615747,0.12473324,96081.0,96073.0,0.002]
[1740400615947,0.1248409,96081.0,96073.0,0.002]
[1740400617242,0.00010766,96081.0,96073.0,0.002]
[1740400617451,0.0176295,96081.0,96074.0,0.0826]
[1740400617640,0.00010766,96081.0,96074.0,0.0826]
[1740400617852,0.00010766,96081.0,96076.0,0.156126]
[1740400618026,0.00010766,96081.0,96075.0,0.156127]
[1740400618237,0.00010766,96081.0,96074.0,0.284029]
[1740400618441,0.00010766,96081.0,96074.0,0.23054569]
[1740400618769,0.00010766,96081.0,96074.0,0.38667469]
[1740400618972,0.00010766,96081.0,96074.0,0.23054569]
[1740400619369,0.01721537,96081.0,96074.0,0.23054569]
[1740400619572,0.00010766,96081.0,96074.0,0.23054569]
[1740400619779,0.00010766,96081.0,96076.0,0.156125]
[1740400620140,0.00010766,96081.0,96077.0,0.156123]
[1740400620345,0.00010766,96081.0,96078.0,0.156123]
[1740400620524,0.00010766,96081.0,96075.0,0.208169]
[1740400620754,0.00010766,96081.0,96076.0,0.156126]
[1740400621265,0.01769562,96081.0,96075.0,0.25877269]
[1740400621465,0.01769562,96081.0,96076.0,0.156126]
[1740400622022,0.01769562,96081.0,96075.0,0.10264569]
[1740400622629,0.01854502,96081.0,96075.0,0.10264569]
[1740400624834,0.17466302,96081.0,96075.0,0.10264569]